bitfinex-derivatives/quotes_ETHF0:USTF0_20220108
["timestamp","ask_amount","ask_price","bid_price","bid_amount"]
[1641614395224,4.99555,3203.1,3202.6,9.11682596]
[1641614395426,5.22925,3203.1,3202.6,9.11682596]
[1641614395627,4.995862,3202.7,3202.6,2.30250916]
[1641614395824,0.2337,3203.1,3202.6,2.30250916]
[1641614395825,4.99555,3203.0,3202.6,2.30250916]
[1641614396225,4.995862,3202.7,3202.6,2.30250916]
[1641614396525,4.995628,3203.0,3202.6,10.61682596]
[1641614396725,2.00479,3203.6,3202.9,8.3143168]
[1641614396925,34.4946,3204.5,3203.5,6.8143168]
[1641614397126,8.0,3204.6,3203.5,0.7731]
[1641614397328,4.993757,3204.4,3203.5,2.2731]
[1641614397525,4.993757,3204.4,3203.6,1.11207107]
[1641614397825,0.2337,3204.3,3203.7,0.905575]
[1641614398032,5.227457,3204.3,3203.7,0.905575]
[1641614398326,2.00479,3204.4,3203.9,6.8143168]
[1641614398327,6.998469,3204.4,3203.9,6.8143168]
[1641614398526,4.993757,3204.2,3203.7,0.264788]
[1641614398726,4.993524,3204.3,3203.7,0.264788]
[1641614399225,4.993835,3204.2,3203.7,0.264788]
[1641614399426,5.227457,3204.3,3203.7,0.264788]
[1641614399627,5.227457,3204.3,3203.7,6.8143168]
[1641614399829,4.993835,3204.2,3203.7,6.8143168]
[1641614400029,2.00479,3203.9,3203.7,6.8143168]
[1641614400429,4.994069,3203.8,3203.7,6.8143168]
[1641614401830,4.994069,3203.8,3203.7,8.3143168]
[1641614402031,2.00479,3204.7,3203.8,0.264788]
[1641614402230,2.00479,3204.7,3204.3,8.3143168]
[1641614402436,1.95500864,3205.5,3204.6,6.8143168]
[1641614402631,5.374,3205.1,3204.6,7.4415168]
[1641614402831,4.0,3205.6,3204.6,7.7063048]
[1641614402832,5.95500864,3205.6,3204.6,7.7063048]
[1641614403031,5.95500864,3205.6,3204.7,1.12552681]
[1641614403633,4.991966,3205.5,3204.7,7.93984361]
[1641614403832,0.2337,3205.4,3204.9,1.5]
[1641614404035,0.2337,3205.4,3204.7,1.12552681]
[1641614404331,0.2337,3205.4,3204.7,3.77110381]
[1641614404536,2.00479,3205.5,3205.3,6.8143168]
[1641614405035,2.00479,3205.5,3205.4,0.85348751]
[1641614405235,2.00479,3205.5,3205.4,1.16326619]
[1641614405433,0.03,3205.7,3205.4,1.16326619]
[1641614405638,0.03,3205.7,3205.6,6.8143168]
[1641614406040,0.03,3205.7,3205.6,7.0791048]
[1641614406443,0.03,3205.7,3205.6,7.76488248]
[1641614406740,1.95500864,3206.5,3205.6,9.89838248]
[1641614406940,1.95500864,3206.5,3206.4,8.3143168]
[1641614407142,2.59712563,3206.8,3206.4,9.0657168]
[1641614407342,3.57104774,3207.3,3206.4,9.0657168]
[1641614407343,1.97610526,3207.2,3206.7,6.8143168]
[1641614407645,1.97610526,3207.2,3206.5,0.04499068]
[1641614407843,4.0,3206.9,3206.5,0.04499068]
[1641614408042,18.3467,3206.9,3206.8,0.04499068]
[1641614408247,0.1772108,3206.8,3205.5,2.00479]
[1641614408443,4.0,3206.3,3205.6,6.8143168]
[1641614408643,4.0,3206.3,3205.5,2.00479]
[1641614408845,0.2337,3206.2,3205.6,0.04495886]
[1641614409044,1.1696108,3206.2,3205.6,1.03255234]
[1641614409446,0.1772108,3206.1,3205.7,0.04495886]
[1641614409648,4.0,3205.8,3205.7,0.04495886]
[1641614409845,13.46,3205.7,3205.6,0.98759348]
[1641614410051,13.46,3205.7,3205.6,9.348e-05]
[1641614410248,30.694467,3205.7,3204.0,6.8143168]
[1641614410450,4.0,3205.0,3204.0,6.8143168]
[1641614410651,18.3725,3205.0,3204.0,6.8143168]
[1641614410847,4.992978,3204.9,3204.0,6.8143168]
[1641614411052,5.17027572,3204.9,3204.1,0.04008008]
[1641614411249,0.2337,3204.8,3204.2,0.905575]
[1641614411449,5.17027572,3204.9,3204.2,0.905575]
[1641614411650,4.992978,3204.7,3204.6,6.8143168]
[1641614411850,0.17729772,3204.8,3204.6,7.0791048]
[1641614412149,0.17729772,3204.8,3204.7,1.49986167]
[1641614412349,2.18208772,3205.3,3204.7,1.53994175]
[1641614412650,4.0,3205.0,3204.9,6.8143168]
[1641614412851,4.0,3205.0,3204.8,0.04008008]
[1641614413049,9.698177,3205.0,3204.8,0.04008008]
[1641614413350,0.17729772,3204.9,3204.8,0.04008008]
[1641614413649,0.41099772,3204.9,3204.8,0.04008008]
[1641614413850,18.86343072,3204.9,3204.8,0.04008008]
[1641614414050,18.86343072,3204.9,3204.7,1.49986167]
[1641614414051,26.86343072,3204.9,3203.7,6.8143168]
[1641614414349,4.0,3204.8,3204.2,6.8143168]
[1641614414549,0.2337,3204.7,3204.2,6.8143168]
[1641614414849,5.226678,3204.7,3203.7,6.8143168]
[1641614415049,0.17731321,3204.6,3204.3,0.0396936]
[1641614415249,4.0,3204.5,3204.4,6.8143168]
[1641614415450,8.993056,3204.5,3203.8,0.0396936]
[1641614415649,8.993056,3204.5,3204.4,6.8540104]
[1641614415848,4.993056,3204.5,3204.4,6.8143168]
[1641614416050,4.993056,3204.5,3204.4,8.0736651]
[1641614416251,2.00479,3204.5,3204.4,8.3384531]
[1641614416453,2.00479,3204.5,3204.4,9.2043531]
[1641614416650,31.9245,3206.4,3204.4,9.2440467]
[1641614416869,37.2985,3206.4,3204.8,6.8143168]
[1641614417052,0.2337,3205.5,3204.6,6.8143168]
[1641614417354,5.225588,3205.5,3205.1,6.8143168]
[1641614417551,4.991888,3205.5,3205.4,6.8143168]
[1641614418054,2.63479298,3206.3,3205.4,7.79354485]
[1641614418253,50.7585,3206.4,3205.4,8.09802645]
[1641614418254,2.00479,3205.5,3205.4,8.09802645]
[1641614418855,2.00479,3205.5,3205.4,7.83323845]
[1641614419853,3.02859,3205.5,3205.4,1.01892165]
[1641614420254,8.020088,3205.5,3205.4,1.01892165]
[1641614420457,7.786388,3205.5,3205.4,7.83323845]
[1641614420657,2.79489,3205.5,3205.4,1.01892165]
[1641614421857,2.79489,3205.5,3205.4,7.83323845]
[1641614422157,2.79489,3205.5,3205.4,1.01892165]
[1641614423657,2.00479,3205.5,3205.4,1.01892165]
[1641614423857,5.374,3206.4,3205.4,1.91002165]
[1641614424258,2.00479,3206.3,3206.2,6.8143168]
[1641614424558,2.00479,3206.3,3206.2,8.4807918]
[1641614424758,2.00479,3206.3,3206.2,8.5204854]
[1641614425159,2.00479,3206.3,3206.2,10.0204854]
[1641614425360,2.00479,3206.3,3206.2,11.05360823]
[1641614425559,35.96759298,3207.4,3206.2,11.05360823]
[1641614425762,2.63479298,3207.4,3206.2,11.05360823]
[1641614426060,0.4928,3207.6,3206.9,6.8143168]
[1641614426259,2.00479,3207.0,3206.4,1.5]
[1641614426459,2.00479,3207.2,3206.9,6.8143168]
[1641614426766,2.00479,3207.2,3207.1,6.8143168]
[1641614426959,0.03,3207.6,3207.1,7.0791048]
[1641614427158,0.03,3207.6,3207.5,6.8143168]
[1641614427660,0.03,3207.6,3207.5,7.0791048]
[1641614427860,0.03,3207.6,3207.5,7.11466168]
[1641614428462,4.63958298,3208.3,3207.6,0.640787]
[1641614428660,4.63958298,3208.3,3208.2,6.8143168]
[1641614429762,2.00479,3208.3,3208.2,6.8143168]
[1641614430164,2.23849,3208.3,3208.2,6.8143168]
[1641614430362,2.23849,3208.3,3208.2,7.74296258]
[1641614430763,2.23849,3208.3,3208.2,6.24296258]
[1641614430967,2.23849,3208.3,3208.2,0.92864578]
[1641614431163,2.41562371,3208.3,3208.2,0.92864578]
[1641614431365,7.40276571,3208.3,3208.2,7.74296258]
[1641614431565,7.40276571,3208.3,3208.2,0.92864578]
[1641614432265,7.40276571,3208.3,3208.2,0.76674874]
[1641614432666,20.86276571,3208.3,3207.8,2.00479]
[1641614432867,4.0,3207.9,3207.2,2.00479]
[1641614433067,0.2337,3207.8,3207.2,2.00479]
[1641614433267,5.22193,3207.8,3207.2,2.81608105]
[1641614433469,5.39906371,3207.8,3207.6,6.8143168]
[1641614433667,0.17713371,3207.7,3207.6,6.8143168]
[1641614434067,5.16520871,3207.7,3207.3,0.264788]
[1641614434468,0.17713371,3207.6,3207.4,6.8143168]
[1641614434671,1.10263371,3207.6,3207.4,6.8143168]
[1641614435168,0.17713371,3207.5,3207.4,6.8143168]
[1641614435868,0.17713371,3207.5,3207.4,6.84986308]
[1641614436268,2.68949,3208.3,3207.4,6.84986308]
[1641614436269,0.2337,3207.7,3207.4,6.84986308]
[1641614436469,0.17713371,3208.2,3207.6,6.8143168]
[1641614436670,2.68949,3208.3,3207.6,6.8143168]
[1641614436870,2.68949,3208.3,3207.5,0.03554628]
[1641614437071,4.0,3208.0,3207.3,0.264788]
[1641614437270,0.2337,3208.2,3207.3,0.264788]
[1641614437271,4.987608,3208.2,3207.9,6.8143168]
[1641614437471,0.2337,3208.2,3208.0,1.53311613]
[1641614437673,5.221153,3208.2,3208.1,6.8143168]
[1641614438071,5.221153,3208.2,3208.0,1.53311613]
[1641614438875,5.934553,3208.2,3208.0,1.53311613]
[1641614439075,5.700853,3208.2,3208.0,1.53311613]
[1641614439286,5.700853,3208.2,3208.1,6.8143168]
[1641614440077,5.374,3209.0,3208.1,9.25540678]
[1641614440277,5.374,3209.0,3208.9,6.8143168]
[1641614440477,5.374,3209.0,3208.9,7.6699048]
[1641614440880,2.23849,3209.2,3208.9,7.6699048]
[1641614441281,2.23849,3209.2,3208.9,7.4051168]
[1641614441480,2.23849,3209.2,3208.9,6.8143168]
[1641614441879,2.00479,3209.2,3209.0,2.18541523]
[1641614442079,2.00479,3209.2,3209.0,8.35894503]
[1641614442283,2.00479,3209.2,3209.0,8.62373303]
[1641614443980,0.03,3209.4,3209.0,9.36643303]
[1641614444180,0.03,3209.4,3209.3,6.8143168]
[1641614444382,0.03,3209.4,3209.3,7.0791048]
[1641614444581,0.03,3209.4,3209.3,7.9661048]
[1641614444984,0.03,3209.4,3209.3,0.887]
[1641614445282,5.015433,3209.4,3209.0,1.54462823]
[1641614445481,4.2337,3209.3,3209.0,1.54462823]
[1641614445682,0.2337,3209.3,3209.1,6.8143168]
[1641614445882,0.2337,3209.3,3209.0,1.54462823]
[1641614445883,4.985743,3209.2,3209.0,1.54462823]
[1641614446085,4.985743,3209.2,3209.1,6.8143168]
[1641614446285,6.990533,3209.2,3209.1,6.8143168]
[1641614446483,4.985743,3209.2,3209.1,6.8143168]
[1641614446683,8.985743,3209.2,3209.1,6.8143168]
[1641614446884,4.985743,3209.2,3209.1,6.8143168]
[1641614448084,0.03,3209.4,3209.1,6.8143168]
[1641614448085,4.985743,3209.3,3209.1,6.8143168]
[1641614448286,4.985743,3209.2,3209.1,6.8143168]
[1641614448685,4.985666,3209.3,3209.1,6.8143168]
[1641614448887,0.03,3209.4,3209.1,6.8143168]
[1641614449085,0.03,3209.4,3209.1,0.03546588]
[1641614449287,0.03,3209.4,3209.3,6.8143168]
[1641614449889,5.015433,3209.4,3209.3,6.8143168]
[1641614450289,5.015433,3209.4,3209.3,8.8191068]
[1641614451887,5.1925082,3209.4,3209.3,2.00479]
[1641614452389,5.1925082,3209.4,3209.0,1.54462823]
[1641614452691,4.0,3209.1,3209.0,1.54462823]
[1641614453091,9.219599,3209.1,3209.0,1.54462823]
[1641614453289,0.1770752,3209.1,3209.0,1.54462823]
[1641614453489,0.1770752,3209.1,3209.0,1.58010598]
[1641614453790,0.1770752,3209.3,3209.0,1.84489398]
[1641614453991,0.1770752,3209.1,3209.0,3.34489398]
[1641614454189,0.1770752,3209.1,3209.0,3.30941623]
[1641614454396,0.1770752,3209.1,3209.0,8.62373303]
[1641614454595,0.1770752,3209.3,3209.0,8.62373303]
[1641614454797,0.03,3209.4,3209.2,6.8143168]
[1641614456797,4.0,3209.3,3209.0,1.54462823]
[1641614457199,13.46,3209.2,3209.0,1.54462823]
[1641614457496,4.985821,3209.1,3209.0,6.8143168]
[1641614457698,4.985821,3209.1,3208.9,6.8143168]
[1641614457896,0.03,3209.4,3208.9,6.8143168]
[1641614458097,0.03,3209.4,3208.8,0.905575]
[1641614458295,0.03,3209.4,3209.2,6.8143168]
[1641614459297,0.03,3209.4,3209.2,1.27081231]
[1641614460101,4.98551,3209.3,3209.2,1.27081231]
[1641614460297,18.44551,3209.3,3209.2,1.27081231]
[1641614460598,4.98551,3209.3,3209.2,1.27081231]
[1641614461398,4.98551,3209.3,3209.2,8.08512911]
[1641614461599,4.98551,3209.3,3209.2,1.27081231]
[1641614461797,0.03,3209.4,3209.2,1.27081231]
[1641614461999,0.03,3209.4,3209.3,6.8143168]
[1641614466301,0.03,3210.3,3209.3,6.8143168]
[1641614466602,0.03,3210.3,3210.2,6.8143168]
[1641614466805,0.03,3210.3,3210.2,8.2221038]
[1641614467402,0.03,3210.3,3210.2,9.69345186]
[1641614468403,0.03,3210.3,3210.2,11.69824186]
[1641614468805,0.03,3210.3,3210.2,11.96302986]
[1641614470006,0.20701878,3210.3,3210.2,11.96302986]
[1641614470707,0.03,3211.2,3210.2,13.46302986]
[1641614470907,4.03,3211.2,3210.3,6.8143168]
[1641614471307,4.03,3211.2,3211.0,6.8143168]
[1641614471508,4.03,3211.2,3210.2,3.47613806]
[1641614471710,4.03,3211.2,3210.9,6.8143168]
[1641614472206,0.17700424,3211.1,3210.9,6.8143168]
[1641614472407,0.17700424,3211.1,3210.8,2.00479]
[1641614472609,17.46,3210.9,3210.2,3.34663129]
[1641614472808,13.46,3210.3,3210.2,3.34663129]
[1641614473009,0.6501,3210.3,3210.2,1.34184129]
[1641614473210,5.634135,3210.3,3210.2,1.34184129]
[1641614473409,5.81113924,3210.3,3210.2,1.34184129]
[1641614475009,0.82710424,3210.3,3210.2,8.42094609]
[1641614475209,0.17700424,3210.3,3210.2,8.1933435]
[1641614475810,0.17700424,3210.7,3210.2,8.1933435]
[1641614476109,0.17700424,3210.7,3210.6,6.8143168]
[1641614476512,5.16041824,3210.7,3210.6,6.8143168]
[1641614477309,5.16041824,3210.7,3210.6,7.5367168]
[1641614479013,8.0,3210.6,3210.2,1.34184129]
[1641614479212,4.0,3210.3,3210.2,1.34184129]
[1641614479611,8.984035,3210.3,3210.2,1.34184129]
[1641614479812,22.62103924,3210.3,3210.2,1.34184129]
[1641614480413,24.62582924,3210.3,3210.2,1.34184129]
[1641614480713,11.16582924,3210.3,3210.2,1.34184129]
[1641614481213,24.62582924,3210.3,3210.2,1.34184129]
[1641614481614,11.16582924,3210.3,3210.2,1.34184129]
[1641614482813,24.62582924,3210.3,3210.2,1.34184129]
[1641614483915,32.62582924,3210.3,3208.8,6.8143168]
[1641614484115,17.46,3209.1,3208.4,4.9783168]
[1641614484315,2.00479,3209.0,3208.3,2.00479]
[1641614484619,20.451155,3209.0,3208.9,0.05494889]
[1641614485016,20.451155,3209.0,3208.7,4.7257168]
[1641614485017,0.17700424,3208.9,3208.7,4.7257168]
[1641614485216,20.62815924,3209.0,3208.7,4.7257168]
[1641614485415,15.46479,3209.0,3208.8,0.05496988]
[1641614485616,4.98621,3208.9,3208.8,0.05496988]
[1641614485817,18.44621,3208.9,3208.8,0.05496988]
[1641614486015,4.98621,3208.9,3208.8,0.05496988]
[1641614486617,0.7145,3209.1,3208.9,0.640787]
[1641614486817,8.0,3210.2,3209.0,4.7257168]
[1641614487017,8.0,3210.2,3209.0,4.78068668]
[1641614487319,13.46,3209.8,3209.2,4.7257168]
[1641614487517,4.0,3209.9,3209.2,4.7257168]
[1641614487719,4.9852,3209.7,3209.3,0.05496988]
[1641614487917,4.985122,3209.8,3209.3,0.05496988]
[1641614488117,8.0,3210.2,3209.7,4.7257168]
[1641614488317,8.0,3210.2,3209.9,4.7257168]
[1641614488517,10.00479,3210.2,3209.4,2.00479]
[1641614488718,18.444346,3210.1,3209.4,6.7305068]
[1641614488917,4.984346,3210.1,3209.5,5.68126192]
[1641614489117,4.984346,3210.1,3209.5,5.7361942]
[1641614489318,18.444346,3210.1,3209.5,5.7361942]
[1641614489517,18.444346,3210.1,3209.5,0.95554512]
[1641614489921,13.46,3209.9,3209.5,0.95554512]
[1641614490119,14.1947,3209.9,3209.5,0.95554512]
[1641614490318,13.46,3209.7,3209.5,0.95554512]
[1641614492424,18.445044,3209.6,3209.5,0.95554512]
[1641614492721,13.46,3209.6,3209.5,0.95554512]
[1641614492921,4.0,3210.0,3209.5,0.95554512]
[1641614493721,4.984811,3209.9,3209.5,0.95554512]
[1641614494321,4.984811,3209.9,3209.8,4.7257168]
[1641614494521,4.984811,3209.9,3209.8,6.7305068]
[1641614494926,4.984811,3209.9,3209.8,2.00479]
[1641614496223,13.46,3209.6,3209.5,0.95554512]
[1641614496522,2.00479,3209.6,3209.5,0.95554512]
[1641614496723,20.449912,3209.6,3209.5,0.95554512]
[1641614497326,28.449912,3209.6,3209.1,4.7257168]
[1641614497527,26.96,3209.2,3205.8,3.48697709]
[1641614497725,17.46,3208.5,3207.5,0.760795]
[1641614497925,18.22,3208.5,3207.5,0.760795]
[1641614498125,4.987375,3208.4,3207.8,0.05497961]
[1641614498326,18.447375,3208.4,3207.8,0.05497961]
[1641614498526,18.447375,3208.4,3207.8,2.00479]
[1641614498726,14.96,3207.9,3207.6,0.05497961]
[1641614498925,14.96,3207.9,3207.5,2.765585]
[1641614498926,0.002,3207.8,3207.5,2.765585]
[1641614499128,13.46,3207.7,3207.5,2.765585]
[1641614499326,13.46,3207.7,3207.6,1.33458049]
[1641614499728,18.448075,3207.7,3207.6,1.33458049]
[1641614500530,19.948075,3207.7,3207.6,1.33458049]
[1641614500729,20.12521033,3207.7,3207.6,1.33458049]
[1641614501929,20.12521033,3207.7,3207.6,1.33258049]
[1641614502529,22.13000033,3207.7,3207.6,1.33258049]
[1641614503130,20.63000033,3207.7,3207.6,1.33258049]
[1641614505136,7.17000033,3207.7,3207.6,1.33258049]
[1641614506539,5.16521033,3207.7,3207.6,1.33258049]
[1641614509042,5.83921033,3207.7,3207.6,1.33258049]
[1641614509642,19.29921033,3207.7,3207.6,1.33258049]
[1641614510644,5.83921033,3207.7,3207.6,1.33258049]
[1641614511241,5.16521033,3207.7,3207.6,1.33258049]
[1641614513646,5.16521033,3207.7,3207.6,2.77295676]
[1641614513847,2.00479,3208.1,3207.6,3.65565676]
[1641614514047,2.00479,3208.4,3207.6,5.21063596]
[1641614514247,2.00479,3208.4,3207.7,0.264788]
[1641614514646,0.4626,3208.7,3208.0,2.00479]
[1641614514847,4.987453,3208.3,3208.1,0.264788]
[1641614515046,5.16430717,3208.6,3208.1,0.33746234]
[1641614515247,4.98722,3208.2,3208.1,0.33746234]
[1641614515446,4.98722,3208.2,3208.1,0.07267434]
[1641614515647,5.16407417,3208.5,3208.1,1.09349973]
[1641614515849,0.17708717,3208.2,3208.1,1.09349973]
[1641614516347,0.17708717,3208.4,3208.1,1.09349973]
[1641614516546,0.17708717,3208.2,3208.1,1.09349973]
[1641614517049,0.17708717,3208.6,3208.1,1.09349973]
[1641614517850,4.986987,3208.5,3208.1,1.09349973]
[1641614518051,4.986987,3208.5,3208.1,1.35828773]
[1641614518456,0.17708717,3208.4,3208.1,1.35828773]
[1641614518854,4.987142,3208.3,3208.1,1.35828773]
[1641614519256,0.17708717,3208.2,3208.1,1.35828773]
[1641614519455,2.00479,3209.1,3208.1,2.85828773]
[1641614519657,35.47660161,3209.8,3208.8,1.5]
[1641614519857,1.98004068,3209.5,3208.9,0.264788]
[1641614520057,1.98004068,3209.6,3208.9,0.264788]
[1641614520658,1.98004068,3209.6,3209.5,2.00479]
[1641614521061,6.96516268,3209.6,3209.5,2.00479]
[1641614521259,6.96516268,3209.6,3209.5,3.15987472]
[1641614521460,4.985122,3209.6,3209.5,3.15987472]
[1641614521758,4.985122,3209.7,3209.5,3.15987472]
[1641614522258,4.985122,3209.6,3209.5,3.15987472]
[1641614522458,4.985044,3209.7,3209.5,3.15987472]
[1641614522659,4.985122,3209.6,3209.5,1.15508472]
[1641614523060,17.46,3209.7,3209.5,1.15508472]
[1641614523261,4.985122,3209.6,3209.5,1.15508472]
[1641614523460,4.985122,3209.6,3209.2,2.00479]
[1641614523961,4.985122,3209.6,3209.2,2.645577]
[1641614524361,13.46,3209.7,3209.2,2.00479]
[1641614524564,4.985355,3209.5,3209.2,2.00479]
[1641614524966,4.985277,3209.6,3209.2,2.00479]
[1641614525162,2.47529,3209.9,3209.2,2.82249]
[1641614525563,4.985122,3209.8,3209.2,2.82249]
[1641614525765,4.0,3209.7,3209.2,2.82249]
[1641614526167,18.445277,3209.6,3209.2,2.00479]
[1641614527866,4.985277,3209.6,3209.2,2.00479]
[1641614528267,4.985355,3209.8,3209.2,2.00479]
[1641614528468,4.985355,3209.8,3209.2,2.61719]
[1641614529669,4.0,3209.6,3209.2,2.61719]
[1641614529868,4.985355,3209.8,3209.2,2.00479]
[1641614530069,4.985355,3209.5,3209.2,2.00479]
[1641614530270,4.9852,3209.8,3209.2,2.00479]
[1641614530570,4.9852,3209.8,3209.3,0.09388615]
[1641614530768,4.9852,3209.8,3209.4,1.5374178]
[1641614532673,17.46,3209.5,3209.4,1.5374178]
[1641614532871,18.96,3209.5,3209.4,1.5374178]
[1641614533071,22.445277,3209.5,3209.4,1.5374178]
[1641614533874,4.985277,3209.5,3209.4,1.5374178]
[1641614534272,2.47529,3209.9,3209.4,1.5374178]
[1641614534472,2.47529,3209.9,3209.4,2.35988843]
[1641614534672,2.47529,3209.9,3209.5,0.264788]
[1641614534873,2.00479,3209.9,3209.5,1.85865863]
[1641614535074,2.00479,3209.9,3209.5,0.35865863]
[1641614535274,2.00479,3209.9,3209.6,0.09387063]
[1641614535873,0.17702399,3209.8,3209.6,0.35865863]
[1641614536175,0.17702399,3209.8,3209.7,0.09387063]
[1641614537377,0.17702399,3209.8,3209.5,0.09387063]
[1641614538477,0.17702399,3209.8,3209.7,1.5]
[1641614538675,0.17702399,3209.8,3209.7,4.09219]
[1641614538878,0.17702399,3210.2,3209.7,4.18606063]
[1641614539077,0.17702399,3210.2,3209.8,0.264788]
[1641614539277,0.17702399,3210.2,3209.9,0.640787]
[1641614539477,0.17702399,3210.2,3210.0,1.00135225]
[1641614539677,0.17702399,3210.2,3210.0,1.26614025]
[1641614539877,0.17702399,3210.2,3210.1,0.09387063]
[1641614546588,1.67702399,3210.2,3210.1,0.09387063]
[1641614546784,13.46,3210.1,3208.4,1.5]
[1641614546986,4.0,3209.5,3208.4,1.5]
[1641614547186,4.7412,3209.5,3208.4,1.5]
[1641614547588,0.7412,3209.5,3208.7,1.5]
[1641614547789,0.7412,3209.5,3209.0,1.5]
[1641614548189,0.17703317,3209.4,3209.0,1.5]
[1641614548591,0.17703317,3209.4,3209.1,0.09293353]
[1641614548788,0.17703317,3209.9,3209.2,0.264788]
[1641614549389,0.17703317,3209.9,3209.3,0.09293353]
[1641614549591,0.17703317,3210.1,3209.3,0.35772153]
[1641614549988,0.17703317,3210.1,3209.4,0.73372053]
[1641614550389,4.984889,3210.0,3209.5,0.09293353]
[1641614550789,0.17703317,3209.9,3209.8,2.00479]
[1641614551389,0.17703317,3209.9,3209.8,2.09772353]
[1641614551590,0.17703317,3210.2,3209.8,2.09772353]
[1641614551892,0.17703317,3210.2,3209.9,0.264788]
[1641614552090,0.17703317,3210.2,3209.9,0.35772153]
[1641614552491,0.17703317,3210.2,3210.0,0.09293353]
[1641614552692,0.17703317,3210.2,3210.1,1.31482446]
[1641614552893,0.17703317,3210.2,3210.1,1.57961246]
[1641614553093,0.17703317,3210.2,3210.1,2.31333299]
[1641614553695,0.17703317,3210.5,3210.1,2.31333299]
[1641614553894,0.17703317,3210.2,3210.1,2.31333299]
[1641614554095,0.17703317,3210.2,3210.1,2.22039946]
[1641614554294,0.17703317,3210.5,3210.1,2.22039946]
[1641614555193,0.17703317,3210.5,3210.1,1.57961246]
[1641614558104,0.17703317,3210.5,3210.3,1.5]
[1641614558299,2.01004068,3211.2,3210.4,0.264788]
[1641614558500,2.01004068,3211.2,3211.0,1.5]
[1641614558700,2.01004068,3211.2,3211.1,0.640787]
[1641614559101,2.01004068,3211.2,3211.1,2.09215736]
[1641614559600,2.01004068,3211.2,3211.1,1.45137036]
[1641614559800,0.03,3211.2,3211.1,1.45137036]
[1641614562801,0.03,3211.2,3211.1,3.45616036]
[1641614564404,0.9468,3211.2,3211.1,3.45616036]
[1641614568818,0.03,3211.2,3211.1,3.45616036]
[1641614569216,0.03,3211.2,3211.1,3.55909911]
[1641614569818,0.03,3211.2,3211.1,3.45616036]
[1641614570317,0.03,3211.2,3211.1,3.55910004]
[1641614573420,0.20694458,3211.2,3211.1,3.55910004]
[1641614573620,0.03,3211.2,3211.1,3.55910004]
[1641614574022,0.20694458,3211.2,3211.1,3.55910004]
[1641614574224,0.03,3211.2,3211.1,3.55910004]
[1641614574422,0.20694458,3211.2,3211.1,4.74458804]
[1641614577529,0.20694458,3211.2,3211.1,3.55910004]
[1641614579427,0.20694458,3211.2,3211.1,3.82388804]
[1641614580633,0.20694458,3211.2,3211.1,3.55910004]
[1641614585841,0.20694458,3211.2,3211.1,3.82388804]
[1641614586542,0.20694458,3211.2,3211.1,3.55910004]
[1641614590349,0.93124458,3211.2,3211.1,3.55910004]
[1641614591047,4.93124458,3211.2,3211.1,1.55431004]
[1641614591246,18.39124458,3211.2,3209.6,32.6718]
[1641614591447,18.39124458,3211.2,3209.5,0.760795]
[1641614591448,1.5,3210.8,3209.5,0.760795]
[1641614591648,1.5,3210.6,3209.5,0.760795]
[1641614592049,65.5896,3211.1,3209.6,1.04804764]
[1641614592250,65.5896,3211.1,3209.9,1.5]
[1641614592450,33.3259,3211.1,3209.9,1.5]
[1641614592649,0.17693994,3211.0,3210.0,0.09160738]
[1641614592851,0.17693994,3211.0,3210.9,4.00958]
[1641614593450,0.17693994,3211.0,3210.9,4.10118738]
[1641614593652,0.17693994,3211.1,3210.9,4.10118738]
[1641614594051,0.17693994,3211.1,3211.0,1.1436039]
[1641614595358,1.67693994,3211.1,3209.4,0.760795]
[1641614595556,1.01313994,3211.1,3209.4,0.760795]
[1641614595760,1.01313994,3211.1,3209.4,2.260795]
[1641614595958,4.984035,3211.0,3209.4,0.760795]
[1641614596360,4.984035,3211.0,3209.5,1.18679436]
[1641614596558,0.17695934,3210.9,3209.5,1.27863735]
[1641614596958,2.00479,3210.8,3210.0,2.00479]
[1641614597359,1.5,3210.7,3210.1,1.10429085]
[1641614597559,0.17695934,3210.7,3210.1,1.19613384]
[1641614597760,1.67695934,3210.7,3210.1,1.19613384]
[1641614598159,0.17695934,3210.7,3210.1,1.19613384]
[1641614598360,0.17695934,3210.6,3210.2,0.09184299]
[1641614598861,0.17695934,3210.7,3210.5,2.00479]
[1641614599260,13.46,3211.0,3210.5,2.00479]
[1641614599460,0.8362,3211.1,3210.6,1.39991758]
[1641614599761,0.03,3211.2,3210.6,1.39991758]
[1641614600160,0.03,3211.2,3210.7,0.09184299]
[1641614600470,4.983026,3211.1,3210.7,0.09184299]
[1641614600671,5.896326,3211.1,3210.7,0.09184299]
[1641614601473,0.9133,3211.1,3210.7,0.09184299]
[1641614601672,0.03,3211.2,3210.7,0.09184299]
[1641614602273,4.0,3211.1,3210.7,0.09184299]
[1641614602473,4.6632,3211.1,3210.7,0.09184299]
[1641614603576,1.5,3211.0,3210.7,0.09184299]
[1641614603976,1.5,3210.8,3210.7,0.09184299]
[1641614604576,1.5,3210.8,3210.6,1.30807459]
[1641614604977,3.50479,3210.8,3210.6,1.30807459]
[1641614606479,2.00479,3210.8,3210.6,1.30807459]
[1641614610885,1.5,3210.7,3210.6,1.30807459]
[1641614611086,4.983336,3210.7,3210.6,1.30807459]
[1641614611286,6.483336,3210.7,3210.6,1.30807459]
[1641614612292,19.50522113,3210.7,3210.0,2.00479]
[1641614612489,6.04522113,3210.7,3210.0,2.645577]
[1641614612691,4.983336,3210.7,3210.1,0.33623496]
[1641614612890,2.00479,3210.8,3210.1,0.33623496]
[1641614613293,2.00479,3210.8,3210.2,0.98999946]
[1641614613692,2.00479,3210.8,3210.3,0.07144696]
[1641614614293,0.17694699,3210.7,3210.3,0.07144696]
[1641614615693,1.5,3210.6,3210.3,0.07144696]
[1641614616292,4.0,3210.4,3210.3,0.07144696]
[1641614616493,4.7365,3210.4,3210.3,0.07144696]
[1641614617097,6.91823699,3210.4,3210.3,0.07144696]
[1641614618296,6.91823699,3210.4,3210.2,0.9185525]
[1641614618498,6.91823699,3210.4,3210.3,0.07146541]
[1641614618796,6.91823699,3210.4,3210.2,0.9185525]
[1641614618998,0.17694699,3210.3,3210.2,0.9185525]
[1641614619198,1.67694699,3210.3,3210.2,0.9185525]
[1641614619398,9.67694699,3210.3,3209.3,0.760795]
[1641614619601,5.5,3209.4,3209.2,0.760795]